Cogmind - Beta 15 @@@ ROGUE MODE // 2025.05.26 @ 22:31:57 Player: PieTheDye Result: Destroyed by B-75 Beast with Heavy Plasma Cannon Performance ------------- Evolutions (2) 1000 Regions Visited (8) 1600 Robots Destroyed (87) 435 Value Destroyed (2831) 2831 Prototype IDs (32) 640 Alien Tech Used (0) 0 Bonus (1202) 1202 TOTAL SCORE: 7708 Bonus ------- High Alert Combat Kills 48 Follower Combat Kills 154 Entered Garrisons 200 Used RIF Installer 500 Aligned with FarCom 300 Cogmind --------- Core Integrity 0/550 Matter 300/300 Energy 68/100 System Corruption 1% Temperature Warm (139) Movement Core (250) Ox4 Location -8/Garrison Parts ------- > --- POWER (1) -------- (None) > --- PROPULSION (3) --- (None) > --- UTILITY (5) ------ Advanced Heat Sink Small Storage Unit > --- WEAPON (2) ------- Heavy Laser Heavy Laser > --- INVENTORY (8) ---- Improved Ion Engine Light Treads Light Treads AWS/Thermal Light Assault Rifle Mini Grenade Launcher Missile Launcher Peak State ------------ > --- POWER ------------ Light Deuterium Engine > --- PROPULSION ------- Light Treads Light Treads Advanced Treads > --- UTILITY ---------- Improved Heat Sink Small Storage Unit Advanced Targeting Computer Light Armor Plating Hacking Suite > --- WEAPON ----------- AWS/Thermal > --- INVENTORY -------- Hardlight Generator Hacking Suite Heavy Assault Rifle Autogun Mini Grenade Launcher Missile Launcher [Rating: 36] Favorites ----------- Power Light Nuclear Core Engine Light Deuterium Engine Power Core Light Nuclear Core Propulsion Light Treads Treads Light Treads Flight Unit Improved Flight Unit Utility Small Storage Unit Device Seismic Detector Storage Small Storage Unit Processor Advanced Targeting Computer Hackware Hacking Suite Protection Light Armor Plating Weapon Spread Laser Energy Gun Spread Laser Ballistic Gun Assault Rifle Launcher Mini Grenade Launcher Build | -11 -10 -10 -9 -9 -9 -8 -8 -8 ------- Run | Yrd Mat Min Mat Min Exi Min Mat Gar Slots Evolved 4 | . . . 2 . . . 2 . Power . | . . . . . . . . . Propulsion 1 | . . . 1 . . . . . Utility 3 | . . . 1 . . . 2 . Weapon . | . . . . . . . . . Parts Attached 47 | 7 5 1 6 . 1 . 13 14 Power 5 | 1 1 . . . . . 1 2 Engine 4 | 1 . . . . . . 1 2 Core 1 | . 1 . . . . . . . Reactor . | . . . . . . . . . Propulsion 11 | 2 . 1 2 . . . 3 3 Treads 10 | 2 . 1 1 . . . 3 3 Leg . | . . . . . . . . . Wheel . | . . . . . . . . . Hover . | . . . . . . . . . Flight 1 | . . . 1 . . . . . Utility 14 | 1 2 . 3 . . . 6 2 Device 6 | . 1 . 1 . . . 3 1 Storage 2 | 1 1 . . . . . . . Processor 1 | . . . . . . . 1 . Hackware 2 | . . . . . . . 1 1 Protection 3 | . . . 2 . . . 1 . Artifact . | . . . . . . . . . Weapon 17 | 3 2 . 1 . 1 . 3 7 Energy Gun 9 | . 2 . . . 1 . 2 4 Energy Cannon . | . . . . . . . . . Ballistic Gun 5 | 3 . . 1 . . . . 1 Ballistic Cannon . | . . . . . . . . . Launcher 3 | . . . . . . . 1 2 Special Weapon . | . . . . . . . . . Impact Weapon . | . . . . . . . . . Slashing Weapon . | . . . . . . . . . Piercing Weapon . | . . . . . . . . . Special Melee Weapon . | . . . . . . . . . Unidentified Prototypes 2 | . . . 1 . . . 1 . Parts Lost 25 | . 1 1 2 5 . . 2 14 Power 5 | . 1 . . 1 . . . 3 Propulsion 9 | . . 1 . 2 . . . 6 Utility 8 | . . . 1 1 . . 2 4 Weapon 3 | . . . 1 1 . . . 1 Highest Loss Streak 6 | . 1 1 1 5 . . 1 6 To Critical Strikes . | . . . . . . . . . Average Backups 7 | 1 6 7 13 12 4 4 4 5 Power . | . 1 1 1 . . . . . Propulsion 1 | . 1 1 2 2 . . . 1 Utility . | . . 1 1 2 2 2 1 . Weapon 4 | . 3 4 7 7 2 2 3 3 Tool/Special . | . . . . . . . . . Unused Backups 15 | . . . 3 7 . . 2 3 Power 2 | . . . . 1 . . . 1 Propulsion 5 | . . . 1 2 . . . 2 Utility . | . . . . . . . . . Weapon 8 | . . . 2 4 . . 2 . Tool/Special . | . . . . . . . . . Average Slot Usage (%) 84 | . 99 99 94 73 . . 70 79 Engine 4 | . 6 . . . . . 8 8 Core 5 | . 7 14 11 7 . . . . Treads 24 | . 27 27 31 23 . . 16 22 Device 8 | . 13 14 8 8 . . 6 6 Storage 10 | . 14 14 11 8 . . 8 9 Processor 3 | . . . . . . . 8 9 Hackware 1 | . . . . . . . 2 5 Protection 4 | . . . 9 7 . . 8 . Energy Gun 15 | . 12 28 21 8 . . 10 14 Ballistic Gun 3 | . 15 . . 8 . . . 1 Peak Build Rating 36 | 6 11 11 18 18 16 2 36 29 Average Rating 17 | 5 8 10 16 13 1 2 29 20 On Entrance 8 | . 6 11 11 18 . 2 2 26 Naked Turns 157 | . . . . 28 110 13 6 . Heaviest Build 40 | 12 32 32 40 40 . . 27 27 Greatest Support 63 | 40 40 40 63 63 3 3 62 62 Greatest Overweight (x) 3 | . . 1 . 1 . . 1 3 Average Overweight (x) . | . . . . . . . . . Largest Inventory Capacity 15 | 8 15 15 15 15 5 5 8 8 Average Capacity 10 | 7 10 15 15 12 5 5 7 8 Most Carried 15 | 2 8 8 15 14 5 5 8 8 Average Carried 7 | 1 6 7 13 11 4 5 4 6 Final Capacity 15 | 8 15 15 15 5 5 5 8 8 Final Carried 14 | 2 8 7 14 5 5 5 6 8 Class Distribution -------------------- 79% | Mutant 20% | Scavenger-Mutant Dominant Class ---------------- Mutant | -10/Materials Mutant | -10/Mines Mutant | -9/Materials Mutant | -9/Mines Mutant | -9/Exiles Mutant | -8/Mines Mutant | -8/Materials Scavenger-Mutant | -8/Garrison Resources | -11 -10 -10 -9 -9 -9 -8 -8 -8 ----------- Run | Yrd Mat Min Mat Min Exi Min Mat Gar Matter Collected 1117 | 198 220 70 70 . . . 223 336 Remotely . | . . . . . . . . . Salvage Created 2634 | . 250 65 457 13 . . 1264 585 Parts 150 | . 18 11 36 . . . 57 28 Haulers Intercepted 2 | . . . 1 . . . 1 . Recyclers Shooed . | . . . . . . . . . Parts Field Recycled . | . . . . . . . . . Retrieved Matter . | . . . . . . . . . Parts Self-Destructed . | . . . . . . . . . Prevented . | . . . . . . . . . Kills | -11 -10 -10 -9 -9 -9 -8 -8 -8 ------- Run | Yrd Mat Min Mat Min Exi Min Mat Gar Combat Hostiles Destroyed 76 | . 13 6 17 3 . . 19 18 Guns 66 | . 13 6 17 3 . . 19 8 AOE 8 | . . . . . . . . 8 Classes Destroyed 12 | . 2 . 5 1 . . 3 1 Worker 1 | . . . . . . . 1 . Builder 2 | . . . 1 . . . 1 . Hauler 2 | . . . 1 . . . 1 . Recycler 1 | . . . . . . . 1 . Operator 3 | . . . 2 . . . 1 . Watcher 4 | . . . 2 . . . 2 . Swarmer 27 | . 8 6 7 . . . . 6 Grunt 34 | . 5 . 8 . . . 15 6 Sentry 10 | . . . 2 . . . 3 5 Hunter 1 | . . . . . . . 1 . Programmer 1 | . . . . . . . . 1 Assembled 3 | . . . . 3 . . . . Guerrilla 1 | . . . . . . . . 1 Best Kill Streak 8 | . 6 3 4 3 . . 8 6 Combat Bots Only 6 | . 6 3 3 3 . . 5 6 Max Kills in Single Turn 3 | . 2 2 2 1 . . 1 3 Gunslinging 1 | . 1 1 . . . . . . Exploded 3 | . . . . . . . . 3 Melee . | . . . . . . . . . Uniques/NPCs Destroyed . | . . . . . . . . . Combat | -11 -10 -10 -9 -9 -9 -8 -8 -8 -------- Run | Yrd Mat Min Mat Min Exi Min Mat Gar Hostile Shots Fired 382 | . 60 24 76 29 . 9 49 135 Missed 112 | . 14 3 33 5 . 4 18 35 Hits 270 | . 46 21 43 24 . 5 31 100 Melee 1 | . . . 1 . . . . . Projectile 269 | . 46 21 42 24 . 5 31 100 AOE 10 | . . . . 10 . . . . Critical Strikes 7 | . 2 . . . . . 1 4 Part Disruptions 1 | . . . . 1 . . . . Damage Taken 4058 | . 524 169 473 550 . 85 452 1805 Core 940 | . 49 33 55 155 . 85 67 496 Absorbed by Shields 16 | . . . . . . . 16 . Regen/Repaired (Parts) 230 | . 176 . 54 . . . . . Core Remaining (%) 64 | 100 . 67 . . . 26 . . Volleys Fired 169 | . 35 8 44 12 . . 7 63 Largest 2 | . 2 2 2 2 . . 2 2 Hottest 138 | . 130 130 130 88 . . 138 138 Shots Fired 408 | . 70 16 88 24 . . 94 116 Gun 398 | . 70 16 88 24 . . 94 106 Cannon . | . . . . . . . . . Launcher 10 | . . . . . . . . 10 Special . | . . . . . . . . . Kinetic 73 | . 50 . 2 12 . . . 9 Thermal 325 | . 20 16 86 12 . . 94 97 Explosive 10 | . . . . . . . . 10 Electromagnetic . | . . . . . . . . . Robot Hit Streak 40 | . 12 4 16 4 . . 40 27 Robot Miss Streak 15 | . 9 15 9 6 . . 4 3 Penetration Max . | . . . . . . . . . Secondary Targets 9 | . 3 2 2 1 . . . 1 Max Gunslinging Chain 1 | . 1 1 1 1 . . . 1 Autonomous 80 | . . . . . . . 80 . Shots Hit Robots 332 | . 48 12 80 18 . . 82 92 Core Hits 232 | . 34 14 92 17 . . 41 34 Critical Kills . | . . . . . . . . . Critical Parts Destroyed . | . . . . . . . . . Critical Strikes 5 | . . . . . . . 1 4 Burn 5 | . . . . . . . 1 4 Melee Attacks . | . . . . . . . . . Impact . | . . . . . . . . . Slashing . | . . . . . . . . . Piercing . | . . . . . . . . . Sneak Attacks . | . . . . . . . . . Combat Hostiles . | . . . . . . . . . Follow-up Attacks . | . . . . . . . . . Damage Inflicted 6491 | . 615 115 1005 209 . . 2288 2259 Guns 5771 | . 601 115 1005 204 . . 2287 1559 Cannons . | . . . . . . . . . Explosions 700 | . . . . . . . . 700 Melee . | . . . . . . . . . Ramming 20 | . 14 . . 5 . . 1 . Kinetic 548 | . 381 . 29 94 . . . 44 Thermal 5223 | . 220 115 976 110 . . 2287 1515 Explosive 700 | . . . . . . . . 700 Electromagnetic . | . . . . . . . . . Impact . | . . . . . . . . . Slashing . | . . . . . . . . . Piercing . | . . . . . . . . . Highest Corruption 1 | . . . . . . . . 1 Average Corruption 1 | . . . . . . . . 1 Corruption Purged . | . . . . . . . . . Corruption Blocked . | . . . . . . . . . Effects 11 | . . . . . . . . 11 Message Errors 3 | . . . . . . . . 3 Matter Fused 3 | . . . . . . . . 3 Heat Flow Errors 1 | . . . . . . . . 1 Energy Discharges 1 | . . . . . . . . 1 Data Loss (major) 1 | . . . . . . . . 1 Misfires 2 | . . . . . . . . 2 Overload Shots . | . . . . . . . . . Overflow Damage 45 | . . . . . . . . 45 Projectiles . | . . . . . . . . . Explosions 45 | . . . . . . . . 45 Melee . | . . . . . . . . . Knockbacks 1 | . 1 . . . . . . . Impact 1 | . 1 . . . . . . . Kinetic . | . . . . . . . . . Secondary . | . . . . . . . . . Self-Inflicted Damage 25 | . . . . 2 . . . 23 Shots 2 | . . . . . . . . 2 Rammed 4 | . 1 . . 1 . . 2 . Targets Rammed 4 | . 1 . . 1 . . 2 . Kicked . | . . . . . . . . . Crushed . | . . . . . . . . . Highest Temperature 404 | . 246 300 150 32 . . 90 404 Average Temperature 77 | . 95 149 27 9 . . 39 106 Received Heat Transfer 1511 | . 180 . 102 60 . 36 243 890 Effects 3 | . . 3 . . . . . . Interference 3 | . . 3 . . . . . . Siege Activations . | . . . . . . . . . Martial Activations . | . . . . . . . . . Shielding Activations . | . . . . . . . . . Robots Disrupted . | . . . . . . . . . Combat Hostiles . | . . . . . . . . . Robots Corrupted . | . . . . . . . . . Combat Hostiles . | . . . . . . . . . Parts Fried . | . . . . . . . . . Impact Corruptions . | . . . . . . . . . Robots Melted 2 | . . . . . . . . 2 Combat Hostiles 2 | . . . . . . . . 2 Parts Melted 11 | . . . . . . . 3 8 Heat Transferred 8112 | . 275 155 1210 145 . . 3108 3219 Parts Sabotaged . | . . . . . . . . . Parts Stolen . | . . . . . . . . . Parts Stripped . | . . . . . . . . . Power Chain Reactions . | . . . . . . . . . Alert | -11 -10 -10 -9 -9 -9 -8 -8 -8 ------- Run | Yrd Mat Min Mat Min Exi Min Mat Gar Maximum Alert Level 3 | . . . . . . . 1 3 Low Security (%) 72 | 100 100 100 100 100 . 100 73 15 Level 1 10 | . . . . . . . 26 22 Level 2 10 | . . . . . . . . 38 Level 3 6 | . . . . . . . . 23 Level 4 . | . . . . . . . . . Level 5 . | . . . . . . . . . High Security . | . . . . . . . . . Max Security . | . . . . . . . . . Peak Influence 890 | . 191 113 185 59 . . 257 890 Initial 139 | . . 43 11 59 . . . 139 Average 174 | . 73 48 55 29 . . 110 463 Influence Increases 2494 | . 365 151 615 . . . 512 851 Destroy 0b10 Robot/C 1660 | . 260 120 400 . . . 380 500 Destroy 0b10 Robot/NC 65 | . . . 30 . . . 35 . Destroy Leader 262 | . 60 20 96 . . . 76 10 Allied During Kill 84 | . . 11 15 . . . . 58 Successful Hack 65 | . 30 . 14 . . . 15 6 Anti-Garrison Action 200 | . . . . . . . . 200 Destroy Structure 53 | . . . . . . . 6 47 Lose Combat Pursuer 105 | . 15 . 60 . . . . 30 Influence Decreases 1704 | . 254 231 493 153 . . 297 276 Entered New Map 258 | . . 68 20 94 . . . 76 Time Decay 1125 | . 252 153 403 40 . . 277 . Lost Part 201 | . 2 10 10 19 . . 20 140 Lost Ally 120 | . . . 60 . . . . 60 Squads Dispatched 10 | . 4 . 4 . . . 2 . Investigation 2 | . 1 . 1 . . . . . Extermination . | . . . . . . . . . Reinforcement 8 | . 3 . 3 . . . 2 . Assault . | . . . . . . . . . Garrison . | . . . . . . . . . Intercept . | . . . . . . . . . Searches Triggered . | . . . . . . . . . Construction Impeded 1 | . . . 1 . . . . . Haulers Reinforced . | . . . . . . . . . Active Scanning Responses . | . . . . . . . . . Cargo Convoy Interrupts . | . . . . . . . . . Stealth | -11 -10 -10 -9 -9 -9 -8 -8 -8 --------- Run | Yrd Mat Min Mat Min Exi Min Mat Gar Distress Signals 6 | . 2 . 2 . . . 2 . Communications Jammed . | . . . . . . . . . Distress Signals . | . . . . . . . . . Times Spotted 129 | . 25 6 32 14 . 4 25 23 Peak Tracking Total 9 | . 4 3 5 9 . 4 4 6 Tactical Retreats 4 | . 1 . 2 . . . . 1 Traps | -11 -10 -10 -9 -9 -9 -8 -8 -8 ------- Run | Yrd Mat Min Mat Min Exi Min Mat Gar Traps Triggered 5 | . 3 . 1 . . . . 1 Indirectly . | . . . . . . . . . Trap Hack Attempts . | . . . . . . . . . Triggered . | . . . . . . . . . Disarmed . | . . . . . . . . . Reprogrammed . | . . . . . . . . . Reused . | . . . . . . . . . Traps Extracted . | . . . . . . . . . Installed . | . . . . . . . . . Triggered . | . . . . . . . . . Machines | -11 -10 -10 -9 -9 -9 -8 -8 -8 ---------- Run | Yrd Mat Min Mat Min Exi Min Mat Gar Machines Disabled 2 | . . . . . . . . 2 Max in Single Turn 1 | . . . . . . . . 1 Garrison Relay 2 | . . . . . . . . 2 Machines Repaired . | . . . . . . . . . Machines Dismantled . | . . . . . . . . . Machines Sabotaged . | . . . . . . . . . Overloaded Fab Kills . | . . . . . . . . . Hacking | -11 -10 -10 -9 -9 -9 -8 -8 -8 --------- Run | Yrd Mat Min Mat Min Exi Min Mat Gar Machines Accessed 28 | . 8 . 9 . 1 . 7 3 Terminals 20 | . 5 . 7 . . . 5 3 Fabricators . | . . . . . . . . . Repair Stations 2 | . 1 . 1 . . . . . Recycling Units 3 | . 2 . 1 . . . . . Scanalyzers 1 | . . . . . . . 1 . Garrison Access 1 | . . . . . . . 1 . Total Hacks 75 | . 32 . 18 . 1 . 20 4 Successful 38 | . 19 . 5 . 1 . 12 1 Failed 37 | . 13 . 13 . . . 8 3 Catastrophic 6 | . 1 . 4 . . . . 1 Database Lockouts . | . . . . . . . . . Manual 50 | . 21 . 12 . 1 . 16 . Terminals 54 | . 22 . 12 . . . 16 4 Fabricators . | . . . . . . . . . Repair Stations 7 | . 4 . 3 . . . . . Recycling Units 9 | . 6 . 3 . . . . . Scanalyzers 3 | . . . . . . . 3 . Garrison Access 1 | . . . . . . . 1 . Terminal Hacks 10 | . 6 . 1 . 1 . 1 1 Prototype ID Bank 4 | . 3 . . . . . 1 . Open Door 1 | . . . . . . . . 1 Branch Access Points 3 | . 2 . 1 . . . . . Recall Investigation 1 | . 1 . . . . . . . Proto ID Catalog 1 | . . . . . 1 . . . Fabricator Hacks . | . . . . . . . . . Repair Station Hacks 6 | . 4 . 2 . . . . . Scan Component 3 | . 2 . 1 . . . . . Repair 3 | . 2 . 1 . . . . . Recycling Unit Hacks 1 | . 1 . . . . . . . Retrieve Components 1 | . 1 . . . . . . . Scanalyzer 3 | . . . . . . . 3 . Insert Component 2 | . . . . . . . 2 . Analyze 1 | . . . . . . . 1 . Garrison Access Hacks 1 | . . . . . . . 1 . Unlock Access 1 | . . . . . . . 1 . Unauthorized Hacks 17 | . 8 . 2 . . . 7 . Terminals 17 | . 8 . 2 . . . 7 . Botnet 6 | . 3 . . . . . 3 . Skim 11 | . 5 . 2 . . . 4 . Fabricators . | . . . . . . . . . Repair Stations . | . . . . . . . . . Recycling Units . | . . . . . . . . . Scanalyzers . | . . . . . . . . . Garrison Access . | . . . . . . . . . Data Cores Recovered 2 | . . . 1 . . . 1 . Used . | . . . . . . . . . Hacking Detections 21 | . 6 . 7 . . . 6 2 Full Trace Events 1 | . 1 . . . . . . . Feedback Events . | . . . . . . . . . Feedback Blocked . | . . . . . . . . . Robot Schematics Acquired . | . . . . . . . . . Robots Built . | . . . . . . . . . Authchips . | . . . . . . . . . Time . | . . . . . . . . . Total Robot Build Rating . | . . . . . . . . . Part Schematics Acquired 1 | . . . . . . . 1 . Parts Built . | . . . . . . . . . Authchips . | . . . . . . . . . Time . | . . . . . . . . . Total Part Build Rating . | . . . . . . . . . Parts Repaired 3 | . 2 . 1 . . . . . Time 96 | . 64 . 32 . . . . . Parts Recycled . | . . . . . . . . . Recycled Matter . | . . . . . . . . . Retrieved Matter . | . . . . . . . . . Retrieved Components 8 | . 8 . . . . . . . Parts Scanalyzed 1 | . . . . . . . 1 . Part Schematics Acquired 1 | . . . . . . . 1 . Parts Damaged . | . . . . . . . . . Bothacking | -11 -10 -10 -9 -9 -9 -8 -8 -8 ------------ Run | Yrd Mat Min Mat Min Exi Min Mat Gar Used RIF Installer 1 | . . . . . . . . 1 Robots Hacked . | . . . . . . . . . Non-combat . | . . . . . . . . . Combat . | . . . . . . . . . Robot Hacks Applied . | . . . . . . . . . Relay Couplers Released 12 | . . . . . . . . 12 Machine Destruction 8 | . . . . . . . . 8 Programmers 4 | . . . . . . . . 4 Fabnet Peak Effective % . | . . . . . . . . . Robots Rewired 4 | . . . . . . . . 4 Allies Hacked . | . . . . . . . . . Hacks Repelled . | . . . . . . . . . Allies | -11 -10 -10 -9 -9 -9 -8 -8 -8 -------- Run | Yrd Mat Min Mat Min Exi Min Mat Gar Total Allies 8 | . . 3 . 1 . . . 4 Largest Group 4 | . . 3 3 1 . . . 4 Highest-Rated Group 140 | . . 40 40 31 . . . 140 Highest-Rated Ally 39 | . . 16 16 31 . . . 39 Total Orders . | . . . . . . . . . Ally Attacks 76 | . . . 25 . . . . 51 Total Damage 844 | . . . 177 . . . . 667 Kills 10 | . . . 3 . . . . 7 Allies Corrupted . | . . . . . . . . . Allies Melted . | . . . . . . . . . Intel | -11 -10 -10 -9 -9 -9 -8 -8 -8 ------- Run | Yrd Mat Min Mat Min Exi Min Mat Gar Active Infowar (turns) 1309 | . 904 322 83 . . . . . Seismic 1309 | . 904 322 83 . . . . . Robot Analysis Total . | . . . . . . . . . Derelict Logs Recovered 2 | . . 2 . . . . . . Drone Launches . | . . . . . . . . . Drone Recoveries . | . . . . . . . . . Exploration | -11 -10 -10 -9 -9 -9 -8 -8 -8 ------------- Run | Yrd Mat Min Mat Min Exi Min Mat Gar Turns Passed 4877 | 78 912 341 1219 120 111 13 817 1266 Spaces Moved 2718 | 44 449 198 604 90 215 25 476 617 Core 310 | 3 . . . 55 215 25 10 2 Treads 2408 | 41 449 198 604 35 . . 466 615 Legs . | . . . . . . . . . Wheels . | . . . . . . . . . Hover . | . . . . . . . . . Flight . | . . . . . . . . . Fastest Speed 50 | 50 160 160 160 50 50 50 50 155 Average Speed 146 | 152 160 160 160 94 50 50 152 159 Slowest Speed 240 | 160 160 240 160 240 50 50 225 240 Overloaded Moves . | . . . . . . . . . Propulsion Burnouts . | . . . . . . . . . Robots Hopped . | . . . . . . . . . Potential Cave-ins . | . . . . . . . . . Cave-ins Triggered . | . . . . . . . . . Exploration Rate (%) 46 | 5 87 55 69 20 61 10 50 61 Regions Visited 8 Branch Regions 4 Pre-discovered Areas . | . . . . . . . . . Known Exits Taken 3 | . 1 . 1 . . . 1 . Unknown Exits Taken 5 | 1 . 1 . 1 1 1 . . Scrap Searched 1 | . . 1 . . . . . . Spaces Dug 5 | . . . . . . . . 5 Terrain Destroyed 68 | . . . . . . . 6 62 Melee . | . . . . . . . . . Projectile 6 | . . . . . . . 6 . AOE 62 | . . . . . . . . 62 Terrain Rammed . | . . . . . . . . . Walls Destroyed . | . . . . . . . . . Machines Disabled . | . . . . . . . . . Actions | -11 -10 -10 -9 -9 -9 -8 -8 -8 --------- Run | Yrd Mat Min Mat Min Exi Min Mat Gar Total 3271 | 52 569 206 773 102 218 24 550 777 Wait 242 | . 73 . 102 . . . 32 35 Move 2711 | 43 448 197 603 89 214 24 476 617 Hop . | . . . . . . . . . Pick Up 29 | 2 5 . 11 . . . 7 4 Fast Attach 36 | 6 4 . 4 . 1 . 11 10 Attach 12 | . . 1 2 . . . 7 2 Detach 5 | . . . 1 . 1 . 3 . Swap 16 | 1 3 . 2 . . . . 10 Drop 15 | . . . 4 . 2 . 5 4 Fire 169 | . 35 8 44 12 . . 7 63 Melee . | . . . . . . . . . Ram 1 | . . . . 1 . . . . Kick . | . . . . . . . . . Crush 3 | . 1 . . . . . 2 . Escape Stasis . | . . . . . . . . . Rewire 32 | . . . . . . . . 32 Trap . | . . . . . . . . . Miscellaneous . | . . . . . . . . . Route ------- -11/Scrapyard -10/Materials (discovered 5 exits: *Mat x3 / *Min x2) -10/Mines (discovered 2 exits: *Mat x2) -9/Materials (discovered 4 exits: *Mat x2 / *Min / Sto) -9/Mines -9/Exiles -8/Mines -8/Materials -8/Garrison (discovered 2 exits: [*Mat x2]) History --------- Turn | Location | Event 18 | -11/Scrapyard | Discovered new exit (range 14) 79 | -11/Scrapyard | Entered Materials 263 | -10/Materials | Identified exit to Mines 302 | -10/Materials | Discovered new exit (range 16) 317 | -10/Materials | Build established: Mutant 624 | -10/Materials | Discovered new exit (range 15) 879 | -10/Materials | Repaired Lgt. Nuclear Core 907 | -10/Materials | Repaired Lgt. Treads 918 | -10/Materials | Discovered new exit (range 14) 991 | -10/Materials | Entered Mines 1043 | -10/Mines | Learned 4 Materials zone layouts 1157 | -10/Mines | Assisted by bots powering up and referring to "LRC-V3" 1258 | -10/Mines | Discovered new exit (range 12) 1321 | -10/Mines | Discovered new exit (range 7) 1323 | -10/Mines | Learned Materials emergency access door positions 1332 | -10/Mines | Entered Materials 1332 | -9/Materials | Accompanied by 3 allies 1332 | -9/Materials | Evolved 2 slots: Propulsion x1, Utility x1 1505 | -9/Materials | Lost 3 allies 1580 | -9/Materials | Repaired Spread Laser 1753 | -9/Materials | Discovered new exit (range 8) 2087 | -9/Materials | Identified exit to Mines 2087 | -9/Materials | Identified exit to Storage 2134 | -9/Materials | Discovered new exit (range 14) 2551 | -9/Materials | Entered Mines 2552 | -9/Mines | Assembled infested the area 2557 | -9/Mines | Assisted by a Guerilla fighting off Assembled 2643 | -9/Mines | Released all parts (4) 2648 | -9/Mines | Core integrity fell below 50% 2659 | -9/Mines | Received a Mining Laser from a helpful Derelict 2669 | -9/Mines | Deemed a non-threat by the Exiles lab entrance 2669 | -9/Mines | Discovered new exit (range 5) 2671 | -9/Mines | Lost 5 parts (1p2n1u1w) 2671 | -9/Mines | Entered Exiles 2684 | -9/Exiles | Met 8R-AWN 2692 | -9/Exiles | Met EX-HEX 2709 | -9/Exiles | Met EX-BIN 2715 | -9/Exiles | Aligned with FarCom system 2716 | -9/Exiles | Given EX-Vault access code 2729 | -9/Exiles | Opened EX-Vault 2733 | -9/Exiles | Found AWS/Thermal 2745 | -9/Exiles | Warned to stay clear of 0b10 Research branches 2758 | -9/Exiles | Met EX-DEC 2777 | -9/Exiles | Discovered new exit (range 11) 2782 | -9/Exiles | Left Exiles lab with AWS/Thermal 2782 | -9/Exiles | Entered Mines 2791 | -8/Mines | Discovered new exit (range 8) 2795 | -8/Mines | Entered Materials 2795 | -8/Materials | Evolved 2 slots: Utility x2 3612 | -8/Materials | Identified exit to Garrison 3612 | -8/Materials | Entered Garrison 3635 | -8/Garrison | Triggered checkpoint 3812 | -8/Garrison | Lost 3 parts (1p2n) 3828 | -8/Garrison | Triggered checkpoint 3949 | -8/Garrison | Discovered new exit (range 13) 4002 | -8/Garrison | Triggered checkpoint 4070 | -8/Garrison | Garrison Relay disabled 4092 | -8/Garrison | Core integrity fell below 50% 4337 | -8/Garrison | Build established: Scavenger-Mutant 4456 | -8/Garrison | Triggered checkpoint 4580 | -8/Garrison | Triggered checkpoint 4773 | -8/Garrison | Discovered new exit (range 9) 4834 | -8/Garrison | Installed Relay Interface Framework 4840 | -8/Garrison | Spotted B-75 Beast 4860 | -8/Garrison | Core integrity fell below 20% 4878 | -8/Garrison | Destroyed by B-75 Beast with Heavy Plasma Cannon Last Messages --------------- 04829_ Triggered Alarm Trap. 04829_ An alarm sounds. Initiating installation procedure... 04834_ Relay Interface Framework installed. 04834_ JH-R96(g) knocked back. 04834_ JH-R96(g) triggered Alarm Trap. 04834_ An alarm sounds. 04837_ JH-R96(g) destroyed. 04847_ Lgt. Treads destroyed. 04856_ Critical hit (Meltdown: +320). 04871_ System corrupted: FCS attempts to trigger Hvy. Laser. 04871_ System corrupted: Hvy. Laser misfires. 04872_ Lgt. Treads destroyed. 04872_ Knocked back. 04874_ B-75 Beast suffers critical hit (Burn). 04875_ Hacking Suite destroyed. 04875_ Adv. Targeting Computer destroyed. 04875_ Critical hit (Blast). 04875_ Knocked back. 04875_ Imp. Ion Engine destroyed. Map ----- +----------------------------------------------------+ | ?????????????????????# # | | ?????????????????????############# | | ?????????????????????????????????######### | | ?????????????????????????????????????????## ## | | ??????????????????????????????????????????" | | ??????????????????????????????????????????" | | ??????????????????????????????????????????" | | ??????????????????????????????????????????" | | ??????????????????????????????????????????# ## | | ????????????????????????????????########### [ | | ????????????????????????????????# % = | | ????????????????????????????????# | | ????????????????????????????????? ######## | | ????????????????????????????????# #??????# * # | | ????????????????????????????????# #?????# # ## | | ????????????????????????????????# #?????### #### | | ????????????????????#???????????# #???????# #??? | | ????????????????????# ??????????# #???????# #??? | | ?????????????????#??# ?????????# #???????# #??? | | ?????????????????#!!#//########## ######### #### | | ?????????????????# !BB % + # | | ?????????????????# %BB ## # | | ?????????????????#!!#####=####### ############# # | | ???????????????????????# %%#????# #???????????# # | | ???????????????????????#"["#????# #???????????# # | | ???????????????????????#"@"#????# #???????????# # | | ???????????????????????#" "#????# #######?????# # | | ???????????????????????#"""#????# [%! #?????# # | | ???????????????????????#####????# #!### #?????# # | | ????????????????????????????????# ###?# #??##?# # | | ????????????????????????????????# #???# ##[[[## # | | ????????????????????????????????# #???# # # | | ???????????????????????########## #???# ####### # | | ???????????????????????# #???# ##!!!## # | | ???????????????????????# #???# + # | | ???????????????????????# < #########???# ####### # | | ???????????????????????# ?# #????????# ## [## # | | ???????????????????????####?# #????????# [[ # # | | ????????????????????????????# #????????# ######### | | ???????????????????????####?# #????????# #???????? | | ??????????????????????## ### ########?# #???????? | | ?????????????????????## # % #?# #???????? | | ?????????????????????# ## ### %*### #####???? | | ?????????????????????# # ## % #"T"#???? | | ?????????????????????# # ## * "#???? | | ?????????????????????######## #### ###########???? | | ????????????????????????????# #!!! ????????????? | | ????????????????????????????#####"!"""#??????????? | | ????????????????????????????????#######??????????? | | ?????????????????????????????????????????????????? | +----------------------------------------------------+ Best States ------------- Heat Dissipation 50 Energy Generation 14 Energy Capacity 265 Matter Stores 300 Matter Capacity 300 Sight Range 16 Terrain Scan Density 10 Armor Coverage 225 Evasion (%) 50 Targeting Accuracy 8 Recoil Reduction 3 Offensive Hacking 10 Item Schematics ----------------- Missile Launcher | -8/Materials | Scanalyzed Robot Schematics ------------------ None Fabricated ------------ Nothing Repaired ---------- Lgt. Nuclear Core | 4% | -10/Materials Lgt. Treads | 8% | -10/Materials Spread Laser | 32% | -9/Materials Alien Tech Used ----------------- None Achievements -------------- None Challenges ------------ None Game ------ Seed AbsorptionSniperCasing Manual? 0 Play Time 00:45:51 Cumulative 45.0 hours Start 2025.05.26 @ 21:11:58 End 2025.05.26 @ 22:31:57 Sessions 1 Manual Loads 0 Difficulty Rogue Special Mode None Game No. 52 Rogue 52 Adventurer 0 Explorer 0 Win Type - Total 0 Types 0/0/0/0/0/0/0/0/0/0 Lore% 26 Gallery% 32 Achievement% 35 Wizard Run 0 Options --------- Layout 0 ASCII 0 Keyboard 0 Movement Numpad Keybinds 0 Fullscreen 1 Font 18/SmallcapsGlow Map View 76x50 Zoom Use 0% Tactical HUD 1 Map Filters NONE Filters NONE Steam 1 RUN: 06101e13-f67b-4cc5-8899-f68adaf02646